Cogmind - Beta 15 X1 @@@ ROGUE MODE // 2024.11.17 @ 03:28:53 Player: H3-RMN Result: Destroyed by E5-PF9(R) with Subdweller Laser Performance ------------- Evolutions (0) 0 Regions Visited (2) 400 Robots Destroyed (17) 85 Value Destroyed (397) 397 Prototype IDs (0) 0 Alien Tech Used (0) 0 Bonus (0) 0 TOTAL SCORE: 882 Bonus ------- None Cogmind --------- Core Integrity 0/250 Matter 240/300 Energy 125/125 System Corruption 0% Temperature Cool (6) Movement Treading (320) Ox2 Location -10/Subcaves Parts ------- > --- POWER (1) -------- Light Ion Engine > --- PROPULSION (2) --- Light Treads Compact Wheel > --- UTILITY (2) ------ High-capacity Storage Unit Structural Scanner > --- WEAPON (2) ------- Assault Rifle Light Assault Rifle > --- INVENTORY (20) --- Light Treads Light Treads Light Treads Light Treads Wheel Heat Sink Huge Storage Unit Huge Storage Unit EM Pulse Gun Light Assault Rifle Light Assault Rifle Light Assault Rifle Mining Laser Mining Claw Mining Claw Peak State ------------ > --- POWER ------------ Light Ion Engine > --- PROPULSION ------- Light Treads Compact Wheel > --- UTILITY ---------- Huge Storage Unit Structural Scanner > --- WEAPON ----------- Assault Rifle Light Assault Rifle > --- INVENTORY -------- Light Treads Light Treads Wheel Heat Sink Huge Storage Unit EM Pulse Gun Light Assault Rifle Light Assault Rifle Light Assault Rifle Mining Laser [Rating: 8] Favorites ----------- Power Light Ion Engine Engine Light Ion Engine Propulsion Compact Wheel Treads Light Treads Wheel Compact Wheel Utility Structural Scanner Device Structural Scanner Storage High-capacity Storage Unit Weapon Light Assault Rifle Energy Gun Medium Laser Ballistic Gun Light Assault Rifle Special Weapon Mining Laser Build | -11 -10 -10 ------- Run | Yrd Mat Sub Slots Evolved . | . . . Power . | . . . Propulsion . | . . . Utility . | . . . Weapon . | . . . Parts Attached 17 | 6 11 . Power 3 | 1 2 . Engine 3 | 1 2 . Core . | . . . Reactor . | . . . Propulsion 3 | 2 1 . Treads 1 | . 1 . Leg . | . . . Wheel 2 | 2 . . Hover . | . . . Flight . | . . . Utility 5 | 1 4 . Device 1 | . 1 . Storage 4 | 1 3 . Processor . | . . . Hackware . | . . . Protection . | . . . Artifact . | . . . Weapon 6 | 2 4 . Energy Gun 1 | 1 . . Energy Cannon . | . . . Ballistic Gun 4 | 1 3 . Ballistic Cannon . | . . . Launcher . | . . . Special Weapon 1 | . 1 . Impact Weapon . | . . . Slashing Weapon . | . . . Piercing Weapon . | . . . Special Melee Weapon . | . . . Unidentified Prototypes . | . . . Parts Lost 2 | . 2 . Power 2 | . 2 . Propulsion . | . . . Utility . | . . . Weapon . | . . . Highest Loss Streak 1 | . 1 . To Critical Strikes . | . . . Average Backups 10 | 2 8 15 Power . | . . . Propulsion 3 | 1 3 5 Utility 1 | . 1 3 Weapon 4 | . 3 7 Tool/Special . | . . . Unused Backups 9 | . . 9 Power . | . . . Propulsion 4 | . . 4 Utility 1 | . . 1 Weapon 4 | . . 4 Tool/Special . | . . . Average Slot Usage (%) 97 | . 95 100 Engine 12 | . 11 14 Treads 9 | . 7 14 Wheel 18 | . 20 14 Device 12 | . 11 14 Storage 14 | . 14 14 Energy Gun 3 | . 5 . Ballistic Gun 24 | . 21 28 Peak Build Rating 8 | 6 8 8 Average Rating 7 | 4 6 8 On Entrance 4 | . 6 8 Naked Turns . | . . . Heaviest Build 87 | 11 87 47 Greatest Support 26 | 26 26 16 Greatest Overweight (x) 5 | . 5 2 Average Overweight (x) 1 | . 1 2 Largest Inventory Capacity 25 | 8 25 20 Average Capacity 16 | 6 15 20 Most Carried 15 | 4 15 15 Average Carried 10 | 2 8 15 Final Capacity 20 | 8 20 20 Final Carried 15 | 4 15 15 Class Distribution -------------------- 100% | Mutant Dominant Class ---------------- Mutant | -10/Materials Mutant | -10/Subcaves Resources | -11 -10 -10 ----------- Run | Yrd Mat Sub Matter Collected 498 | 260 238 . Remotely . | . . . Salvage Created 640 | . 513 127 Parts 41 | . 32 9 Haulers Intercepted 1 | . 1 . Recyclers Shooed 1 | . 1 . Parts Field Recycled . | . . . Retrieved Matter . | . . . Parts Self-Destructed . | . . . Prevented . | . . . Kills | -11 -10 -10 ------- Run | Yrd Mat Sub Combat Hostiles Destroyed 14 | . 11 3 Guns 14 | . 11 3 Classes Destroyed 5 | . 4 1 Hauler 1 | . 1 . Recycler 2 | . 2 . Swarmer 6 | . 6 . Grunt 5 | . 5 . Subdweller 3 | . . 3 Best Kill Streak 4 | . 4 3 Combat Bots Only 3 | . 3 3 Max Kills in Single Turn 1 | . 1 1 Gunslinging . | . . . Exploded . | . . . Melee . | . . . Uniques/NPCs Destroyed . | . . . Combat | -11 -10 -10 -------- Run | Yrd Mat Sub Hostile Shots Fired 82 | . 51 31 Missed 25 | . 13 12 Damage Taken 760 | . 375 385 Core 251 | . 117 134 Absorbed by Shields . | . . . Core Remaining (%) 100 | 100 . . Volleys Fired 70 | 4 51 15 Largest 2 | 2 2 2 Hottest 100 | 70 100 40 Shots Fired 139 | 8 101 30 Gun 138 | 8 100 30 Cannon . | . . . Launcher . | . . . Special 1 | . 1 . Kinetic 112 | 4 78 30 Thermal 27 | 4 23 . Explosive . | . . . Electromagnetic . | . . . Robot Hit Streak 16 | 3 16 8 Robot Miss Streak 3 | 1 3 2 Penetration Max . | . . . Secondary Targets 3 | . 2 1 Max Gunslinging Chain 1 | . 1 1 Shots Hit Robots 92 | 5 64 23 Core Hits 37 | 1 26 10 Critical Kills 1 | . 1 . Critical Parts Destroyed . | . . . Critical Strikes 4 | 2 2 . Burn 3 | 2 1 . Destroy 1 | . 1 . Melee Attacks . | . . . Impact . | . . . Slashing . | . . . Piercing . | . . . Sneak Attacks . | . . . Combat Hostiles . | . . . Follow-up Attacks . | . . . Damage Inflicted 919 | 58 627 234 Guns 919 | 58 627 234 Cannons . | . . . Explosions . | . . . Melee . | . . . Ramming . | . . . Kinetic 730 | 8 488 234 Thermal 189 | 50 139 . Explosive . | . . . Electromagnetic . | . . . Impact . | . . . Slashing . | . . . Piercing . | . . . Highest Corruption . | . . . Average Corruption . | . . . Corruption Purged . | . . . Corruption Blocked . | . . . Overload Shots . | . . . Overflow Damage . | . . . Projectiles . | . . . Explosions . | . . . Melee . | . . . Knockbacks . | . . . Impact . | . . . Kinetic . | . . . Secondary . | . . . Self-Inflicted Damage . | . . . Shots . | . . . Rammed . | . . . Targets Rammed . | . . . Kicked . | . . . Crushed . | . . . Highest Temperature 100 | 80 100 . Average Temperature 40 | 39 40 . Received Heat Transfer 186 | . 108 78 Siege Activations . | . . . Martial Activations . | . . . Shielding Activations . | . . . Robots Disrupted . | . . . Combat Hostiles . | . . . Robots Corrupted . | . . . Combat Hostiles . | . . . Parts Fried . | . . . Impact Corruptions . | . . . Robots Melted . | . . . Combat Hostiles . | . . . Parts Melted 4 | . 2 2 Heat Transferred 777 | 296 481 . Parts Sabotaged . | . . . Parts Stolen . | . . . Parts Stripped . | . . . Power Chain Reactions . | . . . Alert | -11 -10 -10 ------- Run | Yrd Mat Sub Maximum Alert Level . | . . . Low Security (%) 100 | 100 100 . Level 1 . | . . . Level 2 . | . . . Level 3 . | . . . Level 4 . | . . . Level 5 . | . . . High Security . | . . . Max Security . | . . . Peak Influence 162 | . 162 . Initial . | . . . Average 65 | . 72 . Influence Increases 364 | . 364 . Destroy 0b10 Robot/C 220 | . 220 . Destroy 0b10 Robot/NC 15 | . 15 . Destroy Leader 42 | . 42 . Successful Hack 12 | . 12 . Disable Machine 30 | . 30 . Lose Combat Pursuer 45 | . 45 . Influence Decreases 320 | . 274 46 Time Decay 300 | . 254 46 Lost Part 20 | . 20 . Squads Dispatched 1 | . 1 . Investigation 1 | . 1 . Extermination . | . . . Reinforcement . | . . . Assault . | . . . Garrison . | . . . Intercept . | . . . Searches Triggered . | . . . Construction Impeded . | . . . Haulers Reinforced . | . . . Active Scanning Responses . | . . . Cargo Convoy Interrupts . | . . . Stealth | -11 -10 -10 --------- Run | Yrd Mat Sub Distress Signals 5 | . 5 . Communications Jammed . | . . . Distress Signals . | . . . Times Spotted 24 | . 20 4 Peak Tracking Total 4 | . 4 3 Tactical Retreats 2 | . 2 . Traps | -11 -10 -10 ------- Run | Yrd Mat Sub Traps Triggered . | . . . Indirectly . | . . . Trap Hack Attempts . | . . . Triggered . | . . . Disarmed . | . . . Reprogrammed . | . . . Reused . | . . . Traps Extracted . | . . . Installed . | . . . Triggered . | . . . Machines | -11 -10 -10 ---------- Run | Yrd Mat Sub Machines Disabled 2 | . 2 . Max in Single Turn 1 | . 1 . Machines Repaired . | . . . Machines Dismantled . | . . . Machines Sabotaged . | . . . Overloaded Fab Kills . | . . . Hacking | -11 -10 -10 --------- Run | Yrd Mat Sub Machines Accessed 3 | . 3 . Terminals 2 | . 2 . Fabricators . | . . . Repair Stations . | . . . Recycling Units 1 | . 1 . Scanalyzers . | . . . Garrison Access . | . . . Total Hacks 7 | . 7 . Successful 3 | . 3 . Failed 4 | . 4 . Catastrophic . | . . . Database Lockouts . | . . . Manual 4 | . 4 . Terminals 4 | . 4 . Fabricators . | . . . Repair Stations . | . . . Recycling Units 3 | . 3 . Scanalyzers . | . . . Garrison Access . | . . . Terminal Hacks 2 | . 2 . Robot Analysis 2 | . 2 . Fabricator Hacks . | . . . Repair Station Hacks . | . . . Recycling Unit Hacks 1 | . 1 . Report Inventory 1 | . 1 . Scanalyzer . | . . . Garrison Access Hacks . | . . . Unauthorized Hacks . | . . . Terminals . | . . . Fabricators . | . . . Repair Stations . | . . . Recycling Units . | . . . Scanalyzers . | . . . Garrison Access . | . . . Data Cores Recovered . | . . . Used . | . . . Hacking Detections 2 | . 2 . Full Trace Events 1 | . 1 . Feedback Events . | . . . Feedback Blocked . | . . . Robot Schematics Acquired . | . . . Robots Built . | . . . Authchips . | . . . Time . | . . . Total Robot Build Rating . | . . . Part Schematics Acquired . | . . . Parts Built . | . . . Authchips . | . . . Time . | . . . Total Part Build Rating . | . . . Parts Repaired . | . . . Time . | . . . Parts Recycled . | . . . Recycled Matter . | . . . Retrieved Matter . | . . . Retrieved Components . | . . . Parts Scanalyzed . | . . . Part Schematics Acquired . | . . . Parts Damaged . | . . . Bothacking | -11 -10 -10 ------------ Run | Yrd Mat Sub Used RIF Installer . | . . . Robots Hacked . | . . . Non-combat . | . . . Combat . | . . . Robot Hacks Applied . | . . . Relay Couplers Released . | . . . Fabnet Peak Effective % . | . . . Robots Rewired . | . . . Allies Hacked . | . . . Hacks Repelled . | . . . Allies | -11 -10 -10 -------- Run | Yrd Mat Sub Total Allies . | . . . Largest Group . | . . . Highest-Rated Group . | . . . Highest-Rated Ally . | . . . Total Orders . | . . . Ally Attacks . | . . . Total Damage . | . . . Kills . | . . . Allies Corrupted . | . . . Allies Melted . | . . . Intel | -11 -10 -10 ------- Run | Yrd Mat Sub Active Infowar (turns) 764 | . 475 289 Structural 764 | . 475 289 Robot Analysis Total 2 | . 2 . Derelict Logs Recovered . | . . . Drone Launches . | . . . Drone Recoveries . | . . . Exploration | -11 -10 -10 ------------- Run | Yrd Mat Sub Turns Passed 886 | 56 541 289 Spaces Moved 528 | 36 301 191 Core 1 | 1 . . Treads . | . . . Legs . | . . . Wheels 527 | 35 301 191 Hover . | . . . Flight . | . . . Fastest Speed 50 | 50 90 130 Average Speed 117 | 87 113 130 Slowest Speed 175 | 90 175 130 Overloaded Moves . | . . . Propulsion Burnouts . | . . . Robots Hopped . | . . . Cave-ins Triggered . | . . . Exploration Rate (%) 27 | 3 62 18 Regions Visited 2 Branch Regions 1 Pre-discovered Areas 1 | . . 1 Known Exits Taken . | . . . Unknown Exits Taken 2 | 1 1 . Scrap Searched . | . . . Spaces Dug . | . . . Terrain Destroyed . | . . . Melee . | . . . Projectile . | . . . AOE . | . . . Terrain Rammed . | . . . Walls Destroyed . | . . . Machines Disabled . | . . . Actions | -11 -10 -10 --------- Run | Yrd Mat Sub Total 659 | 50 403 206 Wait 30 | 1 29 . Move 526 | 35 300 191 Hop . | . . . Pick Up 14 | 4 10 . Fast Attach 9 | 6 3 . Attach 1 | . 1 . Detach . | . . . Swap 7 | . 7 . Drop 2 | . 2 . Fire 70 | 4 51 15 Melee . | . . . Ram . | . . . Kick . | . . . Crush . | . . . Escape Stasis . | . . . Rewire . | . . . Trap . | . . . Miscellaneous . | . . . Route ------- -11/Scrapyard -10/Materials (discovered 2 exits: [*Min] / [*Sub]) -10/Subcaves (discovered 1 exit: [*Mat]) History --------- Turn | Location | Event 29 | -11/Scrapyard | Discovered new exit (range 15) 57 | -11/Scrapyard | Entered Materials 139 | -10/Materials | Discovered new exit (range 14) 338 | -10/Materials | Build established: Mutant 588 | -10/Materials | Discovered new exit (range 9) 598 | -10/Materials | Entered Subcaves 599 | -10/Subcaves | Approached by a straggling Scientist 605 | -10/Subcaves | Learned location of Zion (-7) 605 | -10/Subcaves | Met a Zionite searching for "candidates" 706 | -10/Subcaves | Discovered new exit (range 12) 855 | -10/Subcaves | Core integrity fell below 50% 869 | -10/Subcaves | Core integrity fell below 20% 887 | -10/Subcaves | Destroyed by E5-PF9(R) with Subdweller Laser Last Messages --------------- nasty situation. At least I think I can... The group I got separated from was talking about a shortcut back to the UFD." 00604_ 0B-14H(z): "She is not going to be happy we haven't found any suitable candidates yet." 00605_ 0B-14H(z): "Hey you! It's really dangerous down here, I feel that you could die at any moment. For your health and safety might I suggest a trip to Zion?" World map updated: -7/Zion. Q0-C4Y(c): "I think it's somewhere northeast of here" 00706_ EXIT=FOUND Q0-C4Y(c): "I think it's somewhere northeast of here" C7-O1U(R) emerges from concealment. 00864_ F0-TO6(R) destroyed. 00871_ Subatomizers dissect the Sub. Monowheel. 00878_ Sub. Monowheel melted. 00878_ C7-O1U(R) destroyed. 00878_ Switching to secondary target: 2L-5AK(R). 00881_ Sub. Optics melted. 00881_ 2L-5AK(R) destroyed. 00886_ Subatomizers dissect the Sub. Monowheel. Map ----- +----------------------------------------------------+ | ?????????????????????????????????????????????????? | | ?????????????????????????????????????????????????? | | ?????????????????????????????????????????????????? | | ?????????????????????????????????????????????????? | | ?????????????????????????????????????????????????? | | ?????????????????????????????????????????????????? | | ?????????????????????????????????????????????????? | | ?????????????????????????????????????????????????? | | ???????????????????????? ????????????????????????? | | ???????????????????????? ????????????????????????? | | ??????????????????????? ????????????????????????? | | ????????????????????? ##??????????????????????? | | ?????????????????????"" ###?????????????????????? | | ????????????????????? "" ##?????????????????????? | | ?????????????????????? """ #?????????????????????? | | ?????????????????????# *!"" ###??????????????????? | | ?????????????????????##%= """##??????????????????? | | ????????????????????###! """"######??????????????? | | ????????????????????### " "#######?????????????? | | ????????????????????## # ####"###?????????????? | | ????????????????????### ""#####""##?????????????? | | ?????????????????????## ]c##### ##?????????????? | | ?????????????????????## &*%& ###?????????????? | | ?????????????????????### &&= ######??????????? | | ???????????????# "???### "########????????? | | ???????????????## "??### @ ## " #######?????? | | ???????????????### ## #### #####?????? | | ????????????????### R ###### ##?????? | | ?????????????????#### ####### #### ##?????? | | ?????????????????#### ###?## ###### ##?????? | | ???????????????????## ##??######## ## ##?????? | | ???????????????????## ##??######## ##?????? | | ???????????????????### ###?????##### ##?????? | | #??????????????????########?????##### ##?????? | | #???????????????????#####???????## ##?????? | | #???????????????????????????????## ###????? | | #???????????????????????????????## ###????? | | ##??????????????????????????????## ##????? | | ###?????????????????????????????### ###????? | | ###?????????????????????????????######## ###????? | | ##??????????????????????????????####### ###????? | | ##?????????????????????????????????### ####???? | | ###?????????????????????????????????## ###???? | | ###?????????????????????????????????## ##???? | | ##??????????????????????????????????## ##???? | | #??????????????????????????????????### ###???? | | ##????????????????????????????????#### ####???? | | ##???????????????????????????????#### #######?? | | ##??????????????????????????????#### ####### ? | | ##????????????????????????######### ## ## ? | +----------------------------------------------------+ Best States ------------- Heat Dissipation 25 Energy Generation 10 Energy Capacity 125 Matter Stores 300 Matter Capacity 300 Sight Range 16 Terrain Scan Density 10 Evasion (%) 44 Recoil Reduction 1 Item Schematics ----------------- None Robot Schematics ------------------ None Fabricated ------------ Nothing Repaired ---------- Nothing Alien Tech Used ----------------- None Achievements -------------- None Challenges ------------ None Game ------ Seed FlightSmartbombExpander Manual? 1 Play Time 00:08:23 Cumulative 563.3 hours Start 2024.11.17 @ 03:22:04 End 2024.11.17 @ 03:28:53 Sessions 1 Manual Loads 0 Difficulty Rogue Special Mode None Game No. 215 Rogue 210 Adventurer 4 Explorer 1 Win Type - Total 9 Types 6/1/0/1/0/1/0/0/0 Lore% 90 Gallery% 92 Achievement% 87 Wizard Run 0 Options --------- Layout 0 ASCII 0 Keyboard 0 Movement Numpad Keybinds 0 Fullscreen 2 Font 18/CogNarrow Map View 76x50 Zoom Use 0% Tactical HUD 1 Map Filters NONE Filters NONE Steam 1 RUN: e0eff8cc-5b99-417b-b81c-f6f67bc4ebf9